Cogmind - Beta 13 @@@ ROGUE MODE // 2024.03.12 @ 16:35:09 Player: OctarineSorcerer Result: Destroyed by P-80 Master with Gamma Rifle Performance ------------- Evolutions (7) 3500 Regions Visited (13) 2600 Robots Destroyed (122) 610 Value Destroyed (4915) 4915 Prototype IDs (14) 280 Alien Tech Used (0) 0 Bonus (1488) 1488 TOTAL SCORE: 13393 Bonus ------- High Alert Combat Kills 350 Follower Combat Kills 727 Entered DSFs 500 Friendly Fire -89 Cogmind --------- Core Integrity 0/1300 Matter 210/300 Energy 100/100 System Corruption 17% Temperature Cool (0) Movement Core (50) Location -3/Research Parts ------- > --- POWER (3) -------- (None) > --- PROPULSION (4) --- Gyrokinetic Inverter > --- UTILITY (11) ----- Advanced Signal Interpreter Advanced Targeting Computer > --- WEAPON (3) ------- (None) > --- INVENTORY (5) ---- Enhanced Armored Leg Advanced Cryofiber Web Heavy Disruptor Cannon Faulty Tiamat Missile Launcher Peak State ------------ > --- POWER ------------ F-cell Engine Light Antimatter Reactor > --- PROPULSION ------- Enhanced Armored Leg Enhanced Armored Leg Biometal Leg Biometal Leg > --- UTILITY ---------- Advanced Power Amplifier Improved Heat Sink Advanced Heat Sink Medium Storage Unit Long-range Sensor Array Advanced Signal Interpreter Experimental Terrain Scan Processor Advanced Targeting Computer Improved Transmission Jammer Improved Phase Shifter Experimental Hacking Suite > --- WEAPON ----------- Heavy Disruptor Cannon Heavy Gauss Cannon > --- INVENTORY -------- Enhanced Armored Leg Enhanced Armored Leg Advanced Cryofiber Web Matter Neutralizer Matter Neutralizer Tiamat Missile Launcher Welding Torch [Rating: 128] Favorites ----------- Power F-cell Engine Engine F-cell Engine Power Core Light Nuclear Core Reactor Light Antimatter Reactor Propulsion Armored Wheel Treads Improved Heavy Siege Treads Leg Enhanced Armored Leg Wheel Armored Wheel Hover Unit Antigrav Array Flight Unit Cooled Cesium-ion Thruster Utility Medium Storage Unit Device Advanced Heat Sink Storage Medium Storage Unit Processor Improved Targeting Computer Hackware Improved Hacking Suite Protection Hardened Medium Armor Plating Weapon Heavy Phase Cannon Energy Gun Improved EM Shotgun Energy Cannon Heavy Phase Cannon Ballistic Gun Hypervelocity Coil Gun Ballistic Cannon Enhanced Gauss Cannon Launcher Heavy Shock Bomb Launcher Special Weapon Improved Plasma Cutter Build | -11 -10 -9 -8 -7 -7 -7 -6 -6 -6 -6 -5 -4 -3 ------- Run | Yrd Mat Mat Mat Fac Low Low Fac Was Fac DSF Fac Fac Res Slots Evolved 14 | . . 2 2 2 . . 2 . . . 2 2 2 Power 2 | . . . . 1 . . . . . . . . 1 Propulsion 2 | . . . 1 . . . . . . . 1 . . Utility 9 | . . 1 1 1 . . 2 . . . 1 2 1 Weapon 1 | . . 1 . . . . . . . . . . . Parts Attached 152 | 6 4 9 11 11 7 . 14 18 . 3 33 23 13 Power 29 | 1 . 3 1 3 3 . 2 6 . 1 5 3 1 Engine 16 | 1 . 3 1 1 . . 2 3 . 1 2 2 . Core 9 | . . . . 2 3 . . . . . 3 1 . Reactor 4 | . . . . . . . . 3 . . . . 1 Propulsion 40 | 2 2 1 3 2 . . 4 3 . . 12 5 6 Treads 1 | . . . . . . . . 1 . . . . . Leg 17 | 2 . . . . . . 4 . . . 4 5 2 Wheel 8 | . 2 1 3 2 . . . . . . . . . Hover 10 | . . . . . . . . 2 . . 4 . 4 Flight 4 | . . . . . . . . . . . 4 . . Utility 45 | 1 2 1 1 3 2 . 5 6 . 1 9 10 4 Device 25 | . . 1 1 2 2 . 4 5 . . 3 6 1 Storage 4 | 1 1 . . . . . . . . 1 . 1 . Processor 8 | . 1 . . . . . . . . . 2 2 3 Hackware 2 | . . . . . . . . . . . 1 1 . Protection 6 | . . . . 1 . . 1 1 . . 3 . . Artifact . | . . . . . . . . . . . . . . Weapon 38 | 2 . 4 6 3 2 . 3 3 . 1 7 5 2 Energy Gun 12 | 1 . 4 3 . . . 3 1 . . . . . Energy Cannon 14 | . . . . 3 1 . . 2 . . 4 3 1 Ballistic Gun 4 | 1 . . 2 . . . . . . . 1 . . Ballistic Cannon 2 | . . . . . . . . . . . 1 1 . Launcher 5 | . . . 1 . 1 . . . . 1 1 1 . Special Weapon 1 | . . . . . . . . . . . . . 1 Impact Weapon . | . . . . . . . . . . . . . . Slashing Weapon . | . . . . . . . . . . . . . . Piercing Weapon . | . . . . . . . . . . . . . . Special Melee Weapon . | . . . . . . . . . . . . . . Unidentified Prototypes 11 | . . 1 . . . . . 1 . . 4 5 . Corrupted Parts 1 | . . . . . . . . . . . . . 1 System Corruption 5 | . . . . . . . . . . . . . 5 Parts Lost 73 | . . 1 7 . 8 . 8 5 . . 10 10 24 Power 12 | . . . 1 . 3 . 2 . . . 2 1 3 Propulsion 15 | . . . 2 . 2 . 2 1 . . 1 . 7 Utility 27 | . . . . . 2 . 2 1 . . 4 7 11 Weapon 19 | . . 1 4 . 1 . 2 3 . . 3 2 3 Highest Loss Streak 17 | . . 1 3 . 7 . 3 5 . . 6 8 17 To Critical Strikes 2 | . . . . . . . . 2 . . . . . Average Slot Usage (%) 88 | . 95 93 91 99 89 84 88 80 93 87 90 91 67 Engine 6 | . 14 11 9 7 2 . 4 10 13 13 4 7 1 Core 4 | . . . . 7 11 15 6 . . . 6 2 . Leg 4 | . 9 . . . . . 12 1 . . 2 9 14 Wheel 7 | . 18 21 26 23 12 7 2 . . . . . . Hover 4 | . . . . . . . . 8 13 13 10 7 . Device 19 | . . 9 17 21 14 15 25 27 33 33 16 23 19 Storage 6 | . 14 11 9 7 7 7 6 1 . 4 5 8 3 Processor 9 | . 9 11 9 7 7 7 6 6 6 6 15 8 15 Hackware 1 | . . . . . . . . . . . 1 4 3 Protection 2 | . . . . . 7 7 3 3 6 1 4 2 . Energy Gun 6 | . 14 24 16 7 2 . 6 12 13 12 . . . Energy Cannon 7 | . . . . 10 20 23 11 4 6 1 5 9 1 Ballistic Gun 2 | . 14 4 3 3 . . . . . . 2 3 . Ballistic Cannon 1 | . . . . . . . . . . . 4 . 3 Naked Turns . | . . . . . . . . . . . . . . Heaviest Build 82 | 12 17 29 33 56 61 61 62 68 52 53 78 82 72 Greatest Support 96 | 20 24 24 36 36 36 12 45 75 35 35 51 80 96 Greatest Overweight (x) 25 | . 1 1 1 1 5 5 5 3 1 1 25 2 9 Average Overweight (x) 1 | . . . . . 3 5 2 1 1 1 1 . . Largest Inventory Capacity 10 | 8 10 10 10 10 10 10 10 10 5 10 10 10 10 Average Capacity 9 | 7 8 10 10 10 10 10 10 6 5 8 10 10 8 Most Carried 10 | 3 8 10 10 10 10 8 9 10 5 10 10 10 10 Average Carried 7 | 1 7 9 8 9 8 8 6 5 5 7 8 7 7 Final Capacity 10 | 8 10 10 10 10 10 10 10 5 5 10 10 10 5 Final Carried 10 | 3 8 10 8 10 8 8 8 5 5 10 7 10 5 Class Distribution -------------------- 39% | Gunner 19% | Skirmisher 19% | Mutant 8% | Scavenger-Skirmisher 6% | Scavenger-Gunner 6% | Tank Dominant Class ---------------- Mutant | -10/Materials Gunner | -9/Materials Gunner | -8/Materials Gunner | -7/Factory Gunner | -7/Lower Caves Gunner | -7/Lower Caves Scavenger-Gunner | -6/Factory Gunner | -6/Waste Gunner | -6/Factory Mutant | -6/DSF Skirmisher | -5/Factory Skirmisher | -4/Factory Mutant | -3/Research Resources | -11 -10 -9 -8 -7 -7 -7 -6 -6 -6 -6 -5 -4 -3 ----------- Run | Yrd Mat Mat Mat Fac Low Low Fac Was Fac DSF Fac Fac Res Matter Collected 2238 | 223 86 133 159 132 75 . 81 124 . 120 425 452 228 Remotely . | . . . . . . . . . . . . . . Salvage Created 6240 | 17 86 498 1375 517 672 . 375 513 . 99 862 900 326 Parts 288 | . 2 24 79 29 24 . 16 10 . 4 36 47 17 Haulers Intercepted 8 | . . 1 . . . . . . . 1 4 2 . Recyclers Shooed 4 | . . . 2 1 . . . . . . 1 . . Parts Field Recycled . | . . . . . . . . . . . . . . Retrieved Matter . | . . . . . . . . . . . . . . Parts Self-Destructed 17 | . . . . . 17 . . . . . . . . Prevented 4 | . . . . . 4 . . . . . . . . Kills | -11 -10 -9 -8 -7 -7 -7 -6 -6 -6 -6 -5 -4 -3 ------- Run | Yrd Mat Mat Mat Fac Low Low Fac Was Fac DSF Fac Fac Res Combat Hostiles Destroyed 87 | . 2 9 19 8 12 . 6 2 . . 11 10 8 Guns 32 | . 2 9 10 3 1 . 3 1 . . . 3 . Cannons 39 | . . . . 5 11 . 2 1 . . 8 7 5 AOE 12 | . . . 7 . . . . . . . 3 . 2 Classes Destroyed 15 | 1 1 5 5 1 1 . . 1 . . . . . Worker 6 | . . 1 2 . . . . . . . 2 . 1 Builder 7 | . . . 3 . . . . . . . . 3 1 Tunneler 1 | 1 . . . . . . . . . . . . . Hauler 8 | . . 1 . . . . . . . 1 4 2 . Recycler 6 | . . 1 3 1 . . . . . . 1 . . Mechanic 1 | . . . 1 . . . . . . . . . . Operator 2 | . . . 1 . . . . . . . 1 . . Watcher 4 | . . . 1 1 . . 1 . . . . 1 . Swarmer 11 | . . 3 . . 1 . . . . . 4 . 3 Grunt 37 | . 2 4 12 4 8 . 2 . . . 2 2 1 Brawler 1 | . . . . . 1 . . . . . . . . Sentry 16 | . . 2 6 2 1 . 3 . . . . 1 1 Hunter 9 | . . . 1 1 1 . . . . . . 4 2 Programmer 11 | . . . . 1 . . 1 . . . 5 3 1 Compactor 2 | . . . . . . . . 2 . . . . . Best Kill Streak 14 | 1 2 4 14 4 6 . 2 1 . 1 3 5 3 Combat Bots Only 7 | . 2 3 7 4 6 . 2 1 . . 3 2 3 Max Kills in Single Turn 4 | 1 1 2 4 1 1 . 1 1 . 1 2 2 2 Gunslinging 1 | . . 1 . . . . . . . . . . . Exploded 2 | . . . 1 . . . . . . . 2 . 2 Melee . | . . . . . . . . . . . . . . Uniques/NPCs Destroyed . | . . . . . . . . . . . . . . Combat | -11 -10 -9 -8 -7 -7 -7 -6 -6 -6 -6 -5 -4 -3 -------- Run | Yrd Mat Mat Mat Fac Low Low Fac Was Fac DSF Fac Fac Res Hostile Shots Fired 853 | . 7 37 77 54 89 . 62 7 . 6 60 242 212 Missed 276 | . 2 6 21 21 24 . 28 . . 2 17 89 66 Damage Taken 11332 | . 57 401 1117 319 1187 . 521 364 . 75 1540 2346 3405 Core 2089 | . . 57 246 63 135 . 24 60 . . 85 101 1318 Absorbed by Shields 416 | . . . . . . . . 19 . 59 39 299 . Regen/Repaired (Parts) 585 | . . 114 127 . . . . 135 . 35 174 . . Core Remaining (%) 85 | 100 100 85 55 . . 71 . . . 90 91 91 . Volleys Fired 287 | 3 5 26 35 28 27 . 11 16 . 2 41 54 39 Largest 3 | 1 2 3 3 3 3 . 3 3 . 2 3 3 2 Hottest 245 | 20 70 155 155 215 245 . 245 239 . 121 193 225 171 Shots Fired 641 | 3 10 69 84 68 77 . 30 42 . 4 91 116 47 Gun 285 | 3 10 69 81 31 10 . 13 24 . 4 9 31 . Cannon 347 | . . . . 37 66 . 17 18 . . 80 85 44 Launcher 6 | . . . 3 . 1 . . . . . 2 . . Special 3 | . . . . . . . . . . . . . 3 Kinetic 163 | 3 5 16 11 13 . . . . . . 48 36 31 Thermal 341 | . 5 26 18 37 66 . 29 42 . 4 34 75 5 Explosive . | . . . . . . . . . . . . . . Electromagnetic 137 | . . 27 55 18 11 . 1 . . . 9 5 11 Robot Hit Streak 38 | 2 6 12 15 12 14 . 26 38 . 2 9 12 7 Robot Miss Streak 6 | 1 2 2 5 4 1 . 2 1 . 2 6 6 2 Penetration Max 1 | . . . . . . . . . . . . 1 . Secondary Targets 3 | . . 3 . . . . . . . . . . . Max Gunslinging Chain 1 | . . 1 . . . . . . . . . . . Shots Hit Robots 432 | 2 7 49 65 48 53 . 23 38 . 2 45 70 30 Core Hits 223 | 2 3 18 56 21 23 . 13 11 . 2 24 33 17 Critical Kills 3 | . . 1 . . . . . . . . . 2 . Critical Parts Destroyed 3 | . . . . . . . . . . . 1 2 . Critical Strikes 15 | . 1 1 1 . . . 1 . . 1 4 4 2 Burn 4 | . 1 . 1 . . . 1 . . 1 . . . Destroy 6 | . . 1 . . . . . . . . 1 4 . Blast 5 | . . . . . . . . . . . 3 . 2 Melee Attacks . | . . . . . . . . . . . . . . Impact . | . . . . . . . . . . . . . . Slashing . | . . . . . . . . . . . . . . Piercing . | . . . . . . . . . . . . . . Sneak Attacks . | . . . . . . . . . . . . . . Combat Hostiles . | . . . . . . . . . . . . . . Follow-up Attacks . | . . . . . . . . . . . . . . Damage Inflicted 13754 | 27 87 750 2350 1083 1791 . 666 1074 . 66 2012 2361 1487 Guns 3467 | 27 87 686 1077 413 162 . 225 503 . 66 28 193 . Cannons 7368 | . . . . 670 1374 . 441 571 . . 1528 1818 966 Explosions 2801 | . . 64 1273 . 255 . . . . . 456 312 441 Melee . | . . . . . . . . . . . . . . Ramming 118 | . . . . . . . . . . . . 38 80 Kinetic 2452 | 27 50 164 135 218 . . . . . . 772 304 782 Thermal 8230 | . 37 314 996 670 1531 . 666 1074 . 66 881 1960 35 Explosive 441 | . . . . . . . . . . . . . 441 Electromagnetic 2513 | . . 272 1219 195 260 . . . . . 359 59 149 Impact . | . . . . . . . . . . . . . . Slashing . | . . . . . . . . . . . . . . Piercing . | . . . . . . . . . . . . . . Highest Corruption 17 | . . . . . 4 4 1 1 1 1 1 6 17 Average Corruption 2 | . . . . . 4 4 1 1 1 1 1 5 7 Corruption Purged . | . . . . . . . . . . . . . . Corruption Blocked 7 | . . . . . . . . . . . 7 . . Effects 57 | . . . . . 11 2 3 10 . 1 10 6 14 Message Errors 14 | . . . . . 3 1 1 3 . . 1 2 3 Matter Fused 9 | . . . . . 1 . . 1 . . 3 3 1 Heat Flow Errors 5 | . . . . . 1 1 . . . 1 . . 2 Energy Discharges 11 | . . . . . 1 . . 2 . . 4 . 4 Data Loss (minor) 7 | . . . . . 1 . 1 3 . . 2 . . Data Loss (major) 4 | . . . . . 1 . 1 1 . . . 1 . Misfires 1 | . . . . . 1 . . . . . . . . Misdirections 3 | . . . . . . . . . . . . . 3 Weapon Failures 3 | . . . . . 2 . . . . . . . 1 Overload Shots . | . . . . . . . . . . . . . . Overflow Damage 489 | . . . 147 25 35 . 1 . . . 141 69 71 Projectiles 176 | . . . . 25 27 . 1 . . . 43 9 71 Explosions 298 | . . . 147 . 8 . . . . . 98 45 . Melee 15 | . . . . . . . . . . . . 15 . Knockbacks 11 | . . . . . . . . . . . 3 . 8 Impact . | . . . . . . . . . . . . . . Kinetic 9 | . . . . . . . . . . . 3 . 6 Secondary 2 | . . . . . . . . . . . . . 2 Self-Inflicted Damage 935 | . . 36 360 . 57 . . . . . 268 50 164 Shots 19 | . . 1 10 . 2 . . . . . 4 1 1 Rammed 15 | . . . . . . . . . . . . . 15 Targets Rammed 18 | . . . . . . . . . . . . 2 16 Kicked 3 | . . . . . . . . . . . . 2 1 Crushed . | . . . . . . . . . . . . . . Highest Temperature 621 | . 54 382 30 143 378 94 232 176 . 71 267 621 213 Average Temperature 103 | . 26 123 16 52 109 55 92 70 . 71 78 151 104 Received Heat Transfer 1482 | . 30 180 333 96 360 . 63 . . 13 54 49 304 Effects 2 | . . 1 . . . . . . . . 1 . . Energy Bleed 1 | . . . . . . . . . . . 1 . . Interference 1 | . . 1 . . . . . . . . . . . Siege Activations 2 | . . . . . . . . 2 . . . . . Total Turns 33 | . . . . . . . . 33 . . . . . Longest Duration 18 | . . . . . . . . 18 . . . . . Robots Corrupted 4 | . . . 2 . . . . . . . 1 . 1 Combat Hostiles 3 | . . . 2 . . . . . . . . . 1 Parts Fried 7 | . . 1 4 . . . . . . . 1 . 1 Impact Corruptions 2 | . . . . . . . . . . . . 1 1 Robots Melted 1 | . . . . . . . 1 . . . . . . Combat Hostiles 1 | . . . . . . . 1 . . . . . . Parts Melted 8 | . . 1 1 . 2 . 2 . . . . 2 . Heat Transferred 10123 | . 185 679 1368 1122 1791 . 1041 1750 . 185 842 1123 37 Parts Sabotaged . | . . . . . . . . . . . . . . Parts Stolen . | . . . . . . . . . . . . . . Parts Stripped . | . . . . . . . . . . . . . . Power Chain Reactions 11 | . . 1 6 . 1 . . . . . 1 2 . Alert | -11 -10 -9 -8 -7 -7 -7 -6 -6 -6 -6 -5 -4 -3 ------- Run | Yrd Mat Mat Mat Fac Low Low Fac Was Fac DSF Fac Fac Res Peak Influence 823 | 5 77 301 823 544 . . 232 21 . 449 620 337 236 Initial 282 | . 3 32 56 282 . . 50 8 . . 235 213 120 Average 230 | 3 13 140 442 385 . . 60 6 . 259 427 237 131 Maximum Alert Level 3 | . . 1 3 2 . . 1 . . 2 2 1 1 Low Security (%) 45 | 100 100 69 12 . . . 97 100 100 40 . 18 85 Level 1 31 | . . 30 32 58 . . 2 . . 29 31 81 14 Level 2 22 | . . . 48 41 . . . . . 29 68 . . Level 3 . | . . . 6 . . . . . . . . . . Level 4 . | . . . . . . . . . . . . . . Level 5 . | . . . . . . . . . . . . . . High Security . | . . . . . . . . . . . . . . Max Security . | . . . . . . . . . . . . . . Sterilizations 1 | . . . . . . . . . . 1 . . . Squads Dispatched 34 | . 1 2 6 2 . . 5 . . 2 7 3 6 Investigation 8 | . 1 2 2 1 . . 1 . . . . . 1 Extermination 6 | . . . . 1 . . 1 . . . 2 1 1 Reinforcement 13 | . . . 2 . . . . . . 2 5 2 2 Assault . | . . . . . . . . . . . . . . Garrison 7 | . . . 2 . . . 3 . . . . . 2 Intercept . | . . . . . . . . . . . . . . Searches Triggered . | . . . . . . . . . . . . . . Construction Impeded 2 | . . . 1 . . . . . . . 1 . . Haulers Reinforced 4 | . . . . . . . . . . . 2 2 . Active Scanning Responses . | . . . . . . . . . . . . . . Cargo Convoy Interrupts . | . . . . . . . . . . . . . . Stealth | -11 -10 -9 -8 -7 -7 -7 -6 -6 -6 -6 -5 -4 -3 --------- Run | Yrd Mat Mat Mat Fac Low Low Fac Was Fac DSF Fac Fac Res Distress Signals 5 | . . 1 1 . . . . . . . 1 1 1 Communications Jammed 11 | . . . . . . . . . . . 9 1 1 Distress Signals 11 | . . . . . . . . . . . 9 1 1 Times Spotted 147 | . 6 10 27 10 13 . 7 6 . 7 19 13 29 Peak Tracking Total 9 | . 4 3 7 4 7 . 3 4 . 4 3 7 9 Tactical Retreats 9 | . . 1 . 1 . . . . . . 1 1 5 Traps | -11 -10 -9 -8 -7 -7 -7 -6 -6 -6 -6 -5 -4 -3 ------- Run | Yrd Mat Mat Mat Fac Low Low Fac Was Fac DSF Fac Fac Res Traps Triggered 9 | . 1 1 1 1 . . 1 . . 1 2 . 1 Indirectly . | . . . . . . . . . . . . . . Trap Hack Attempts . | . . . . . . . . . . . . . . Triggered . | . . . . . . . . . . . . . . Disarmed . | . . . . . . . . . . . . . . Reprogrammed . | . . . . . . . . . . . . . . Reused . | . . . . . . . . . . . . . . Traps Extracted . | . . . . . . . . . . . . . . Installed . | . . . . . . . . . . . . . . Triggered 1 | . . . 1 . . . . . . . . . . Machines | -11 -10 -9 -8 -7 -7 -7 -6 -6 -6 -6 -5 -4 -3 ---------- Run | Yrd Mat Mat Mat Fac Low Low Fac Was Fac DSF Fac Fac Res Machines Disabled 20 | . . . 5 1 3 . . . . . 6 4 1 Max in Single Turn 5 | . . . 3 1 2 . . . . . 5 1 1 Machines Repaired . | . . . . . . . . . . . . . . Machines Dismantled . | . . . . . . . . . . . . . . Machines Sabotaged . | . . . . . . . . . . . . . . Overloaded Fab Kills . | . . . . . . . . . . . . . . Hacking | -11 -10 -9 -8 -7 -7 -7 -6 -6 -6 -6 -5 -4 -3 --------- Run | Yrd Mat Mat Mat Fac Low Low Fac Was Fac DSF Fac Fac Res Machines Accessed 29 | . 4 2 2 6 . . 3 . 1 . 6 3 2 Terminals 15 | . 3 1 1 3 . . . . 1 . 3 2 1 Fabricators 3 | . . . . 2 . . . . . . 1 . . Repair Stations 4 | . . 1 1 . . . . . . . 2 . . Recycling Units 1 | . 1 . . . . . . . . . . . . Scanalyzers 5 | . . . . 1 . . 2 . . . . 1 1 Garrison Access 1 | . . . . . . . 1 . . . . . . Total Hacks 70 | . 11 9 8 15 . . 7 . 1 . 11 5 3 Successful 29 | . 3 5 7 5 . . . . 1 . 5 2 1 Failed 41 | . 8 4 1 10 . . 7 . . . 6 3 2 Catastrophic 3 | . . . . . . . 1 . . . 1 . 1 Database Lockouts . | . . . . . . . . . . . . . . Manual 14 | . 7 2 . . . . . . . . 2 3 . Terminals 35 | . 10 3 3 8 . . . . 1 . 6 3 1 Fabricators 4 | . . . . 3 . . . . . . 1 . . Repair Stations 15 | . . 6 5 . . . . . . . 4 . . Recycling Units 1 | . 1 . . . . . . . . . . . . Scanalyzers 13 | . . . . 4 . . 5 . . . . 2 2 Garrison Access 2 | . . . . . . . 2 . . . . . . Terminal Hacks 8 | . 2 . 2 2 . . . . 1 . 1 . . Robot Analysis 1 | . . . 1 . . . . . . . . . . Prototype ID Bank 1 | . 1 . . . . . . . . . . . . Open DSF 3 | . . . . 1 . . . . 1 . 1 . . Branch Access Points 2 | . 1 . . 1 . . . . . . . . . Transport Status 1 | . . . 1 . . . . . . . . . . Fabricator Hacks 3 | . . . . 2 . . . . . . 1 . . Network Status 2 | . . . . 1 . . . . . . 1 . . Build 1 | . . . . 1 . . . . . . . . . Repair Station Hacks 13 | . . 5 5 . . . . . . . 3 . . Scan Component 8 | . . 3 3 . . . . . . . 2 . . Repair 5 | . . 2 2 . . . . . . . 1 . . Recycling Unit Hacks 1 | . 1 . . . . . . . . . . . . Report Inventory 1 | . 1 . . . . . . . . . . . . Scanalyzer 4 | . . . . 1 . . . . . . . 2 1 Insert Component 3 | . . . . 1 . . . . . . . 1 1 Analyze 1 | . . . . . . . . . . . . 1 . Garrison Access Hacks . | . . . . . . . . . . . . . . Unauthorized Hacks . | . . . . . . . . . . . . . . Terminals . | . . . . . . . . . . . . . . Fabricators . | . . . . . . . . . . . . . . Repair Stations . | . . . . . . . . . . . . . . Recycling Units . | . . . . . . . . . . . . . . Scanalyzers . | . . . . . . . . . . . . . . Garrison Access . | . . . . . . . . . . . . . . Data Cores Recovered 1 | . . . 1 . . . . . . . . . . Used . | . . . . . . . . . . . . . . Hacking Detections 26 | . 4 2 2 4 . . 3 . 1 . 5 3 2 Full Trace Events 3 | . . 1 . 1 . . 1 . . . . . . Feedback Events . | . . . . . . . . . . . . . . Feedback Blocked . | . . . . . . . . . . . . . . Robot Schematics Acquired . | . . . . . . . . . . . . . . Robots Built . | . . . . . . . . . . . . . . Authchips . | . . . . . . . . . . . . . . Time . | . . . . . . . . . . . . . . Total Robot Build Rating . | . . . . . . . . . . . . . . Part Schematics Acquired 1 | . . . . . . . . . . . . 1 . Parts Built 2 | . . . . 2 . . . . . . . . . Authchips . | . . . . . . . . . . . . . . Time 106 | . . . . 106 . . . . . . . . . Total Part Build Rating 12 | . . . . 12 . . . . . . . . . Parts Repaired 5 | . . 2 2 . . . . . . . 1 . . Time 184 | . . 64 89 . . . . . . . 31 . . Parts Recycled . | . . . . . . . . . . . . . . Recycled Matter . | . . . . . . . . . . . . . . Retrieved Matter . | . . . . . . . . . . . . . . Retrieved Components . | . . . . . . . . . . . . . . Parts Scanalyzed 3 | . . . . 1 . . . . . . . 1 1 Part Schematics Acquired 1 | . . . . . . . . . . . . 1 . Parts Damaged 1 | . . . . . . . . . . . . . 1 Bothacking | -11 -10 -9 -8 -7 -7 -7 -6 -6 -6 -6 -5 -4 -3 ------------ Run | Yrd Mat Mat Mat Fac Low Low Fac Was Fac DSF Fac Fac Res Used RIF Installer . | . . . . . . . . . . . . . . Robots Hacked . | . . . . . . . . . . . . . . Non-combat . | . . . . . . . . . . . . . . Combat . | . . . . . . . . . . . . . . Robot Hacks Applied . | . . . . . . . . . . . . . . Relay Couplers Released . | . . . . . . . . . . . . . . Fabnet Peak Effective % . | . . . . . . . . . . . . . . Robots Rewired . | . . . . . . . . . . . . . . Allies Hacked 1 | . . . . . . . . . . . 1 . . Hacks Repelled . | . . . . . . . . . . . . . . Allies | -11 -10 -9 -8 -7 -7 -7 -6 -6 -6 -6 -5 -4 -3 -------- Run | Yrd Mat Mat Mat Fac Low Low Fac Was Fac DSF Fac Fac Res Total Allies 19 | . . . . . . . . 19 . . . . . Largest Group 19 | . . . . . . . . 19 18 17 14 . . Highest-Rated Group 702 | . . . . . . . . 702 675 629 554 . . Highest-Rated Ally 50 | . . . . . . . . 50 50 50 50 . . Total Orders . | . . . . . . . . . . . . . . Ally Attacks 172 | . . . . . . . . 52 . 90 30 . . Total Damage 6358 | . . . . . . . . 2262 . 2330 1766 . . Kills 25 | . . . . . . . . 5 . 10 10 . . Allies Corrupted 1 | . . . . . . . . . . . 1 . . Allies Melted . | . . . . . . . . . . . . . . Intel | -11 -10 -9 -8 -7 -7 -7 -6 -6 -6 -6 -5 -4 -3 ------- Run | Yrd Mat Mat Mat Fac Low Low Fac Was Fac DSF Fac Fac Res Robot Analysis Total 1 | . . . 1 . . . . . . . . . . Derelict Logs Recovered 1 | . . . . . 1 . . . . . . . . Drone Launches . | . . . . . . . . . . . . . . Drone Recoveries . | . . . . . . . . . . . . . . Exploration | -11 -10 -9 -8 -7 -7 -7 -6 -6 -6 -6 -5 -4 -3 ------------- Run | Yrd Mat Mat Mat Fac Low Low Fac Was Fac DSF Fac Fac Res Turns Passed 7049 | 58 231 512 407 673 802 76 635 729 11 147 1248 865 655 Spaces Moved 4027 | 37 199 245 191 453 467 46 306 357 6 97 663 452 508 Core 225 | 5 . . . . . . . 57 . . 1 . 162 Treads 20 | . . . . . . . . 20 . . . . . Legs 804 | 32 54 . . . . . 160 25 . . 88 203 242 Wheels 1693 | . 145 245 191 453 467 46 146 . . . . . . Hover 1279 | . . . . . . . . 255 6 97 568 249 104 Flight 6 | . . . . . . . . . . . 6 . . Fastest Speed 36 | 50 90 90 90 90 105 165 120 50 111 111 110 118 36 Average Speed 122 | 110 98 99 91 103 138 165 172 142 111 111 139 123 88 Slowest Speed 1300 | 120 190 105 105 105 165 165 400 330 111 111 1300 190 500 Overloaded Moves . | . . . . . . . . . . . . . . Propulsion Burnouts . | . . . . . . . . . . . . . . Robots Hopped . | . . . . . . . . . . . . . . Cave-ins Triggered . | . . . . . . . . . . . . . . Exploration Rate (%) 32 | 3 45 27 24 11 72 8 7 94 . 92 20 10 14 Regions Visited 13 Branch Regions 2 Pre-discovered Areas . | . . . . . . . . . . . . . . Known Exits Taken 4 | . . . . 1 . . . . 1 . 1 1 . Unknown Exits Taken 6 | 1 1 1 1 . 1 1 . . . . . . . Scrap Searched 2 | . . . . . 2 . . . . . . . . Spaces Dug . | . . . . . . . . . . . . . . Terrain Destroyed 188 | . . 2 53 1 17 . 2 1 . . 61 28 23 Melee . | . . . . . . . . . . . . . . Projectile 71 | . . . . 1 14 . 2 1 . . 25 20 8 AOE 116 | . . 2 53 . 3 . . . . . 36 7 15 Terrain Rammed . | . . . . . . . . . . . . . . Walls Destroyed . | . . . . . . . . . . . . . . Machines Disabled . | . . . . . . . . . . . . . . Actions | -11 -10 -9 -8 -7 -7 -7 -6 -6 -6 -6 -5 -4 -3 --------- Run | Yrd Mat Mat Mat Fac Low Low Fac Was Fac DSF Fac Fac Res Total 5576 | 48 225 459 351 604 563 46 393 544 10 134 907 632 660 Wait 874 | . 2 160 106 90 59 1 47 134 5 6 119 73 72 Move 4015 | 36 198 244 190 452 466 45 306 356 5 96 662 451 508 Hop . | . . . . . . . . . . . . . . Pick Up 103 | 3 9 12 7 12 3 . 10 7 . 7 14 14 5 Fast Attach 65 | 6 2 1 3 5 2 . 6 6 . 1 14 10 9 Attach 57 | . . 5 6 4 4 . 7 6 . 1 14 8 2 Detach 22 | . 1 1 . . . . 1 3 . 2 9 4 1 Swap 30 | . 2 3 2 2 1 . 1 6 . 1 5 5 2 Drop 79 | . 6 7 2 11 1 . 4 10 . 5 16 11 6 Fire 287 | 3 5 26 35 28 27 . 11 16 . 2 41 54 39 Melee . | . . . . . . . . . . . . . . Ram 15 | . . . . . . . . . . . . . 15 Kick 3 | . . . . . . . . . . . . 2 1 Crush . | . . . . . . . . . . . . . . Escape Stasis 26 | . . . . . . . . . . 13 13 . . Rewire . | . . . . . . . . . . . . . . Trap . | . . . . . . . . . . . . . . Miscellaneous . | . . . . . . . . . . . . . . Route ------- -11/Scrapyard -10/Materials (discovered 4 exits: *Mat x2 / *Min x2) -9/Materials (discovered 2 exits: *Mat / [*Sto]) -8/Materials -7/Factory (discovered 2 exits: *Low x2) -7/Lower Caves -7/Lower Caves -6/Factory -6/Waste -6/Factory -6/DSF -5/Factory -4/Factory -3/Research History --------- Turn | Location | Event 26 | -11/Scrapyard | Discovered new exit (range 14) 59 | -11/Scrapyard | Entered Materials 103 | -10/Materials | Discovered new exit (range 13) 160 | -10/Materials | Identified exit to Mines 180 | -10/Materials | Discovered new exit (range 10) 244 | -10/Materials | Discovered new exit (range 10) 290 | -10/Materials | Entered another Materials area 290 | -9/Materials | Evolved 2 slots: Utility x1, Weapon x1 321 | -9/Materials | Discovered new exit (range 8) 705 | -9/Materials | Discovered new exit (range 15) 748 | -9/Materials | Repaired Arm. Wheel 782 | -9/Materials | Repaired Hvy. EM Pulse Gun 802 | -9/Materials | Entered another Materials area 802 | -8/Materials | Evolved 2 slots: Propulsion x1, Utility x1 826 | -8/Materials | Garrison activated, responded to threat 935 | -8/Materials | Build established: Gunner 974 | -8/Materials | Garrison activated, responded to threat 1024 | -8/Materials | Destroyed 7 combat bots 1064 | -8/Materials | Discovered new exit (range 13) 1071 | -8/Materials | Lost 3 parts (1p2w) 1120 | -8/Materials | Repaired Imp. EM Shotgun 1160 | -8/Materials | Repaired Hpw. Shotgun 1209 | -8/Materials | Entered Factory 1209 | -7/Factory | Evolved 2 slots: Power x1, Utility x1 1585 | -7/Factory | Fabricated Hvy. Phase Cannon (x2) 1818 | -7/Factory | Identified exit to Lower Caves 1882 | -7/Factory | Entered Lower Caves 2166 | -7/Lower Caves | Attracted the attention of an 0b10 base 2233 | -7/Lower Caves | Lost 7 parts (3p2n1u1w) 2325 | -7/Lower Caves | Learned Factory emergency access door positions 2569 | -7/Lower Caves | Discovered new exit (range 12) 2684 | -7/Lower Caves | Entered another Lower Caves area 2753 | -7/Lower Caves | Discovered new exit (range 4) 2760 | -7/Lower Caves | Entered Factory 2760 | -6/Factory | Evolved 2 slots: Utility x2 2991 | -6/Factory | Discovered new exit (range 16) 3014 | -6/Factory | Garrison activated, responded to threat 3047 | -6/Factory | Lost 3 parts (1n1u1w) 3186 | -6/Factory | Lost 3 parts (1p1n1u) 3395 | -6/Factory | Sucked down chute 3395 | -6/Factory | Entered Waste 3406 | -6/Waste | Build established: Scavenger-Gunner 3451 | -6/Waste | Spotted C-40 Crusher 3470 | -6/Waste | Destroyed C-40 Crusher 3480 | -6/Waste | Spotted C-40 Crusher 3481 | -6/Waste | Spotted C-40 Crusher 3497 | -6/Waste | Destroyed C-40 Crusher 3525 | -6/Waste | Spotted C-40 Crusher 3538 | -6/Waste | Crushed by Compactor (1 part destroyed, 2 dropped) 3550 | -6/Waste | Crushed by Compactor (0 parts destroyed, 1 dropped) 3553 | -6/Waste | Crushed by Compactor (0 parts destroyed, 2 dropped) 3556 | -6/Waste | Crushed by Compactor (1 part destroyed, 1 dropped) 3562 | -6/Waste | Spotted C-40 Crusher 3565 | -6/Waste | Crushed by Compactor (1 part destroyed, 1 dropped) 3596 | -6/Waste | Lost 5 parts (1n1u3w) 3596 | -6/Waste | Spotted C-40 Crusher 3622 | -6/Waste | Warlord forces began an assault 3626 | -6/Waste | Allies destroyed C-40 Crusher 3629 | -6/Waste | Allies destroyed C-40 Crusher 3634 | -6/Waste | Allies destroyed C-40 Crusher 3634 | -6/Waste | Allies destroyed C-40 Crusher 4056 | -6/Waste | Build established: Gunner 4061 | -6/Waste | Discovered new exit (range 12) 4124 | -6/Waste | Entered Factory 4124 | -6/Factory | Accompanied by 18 allies 4130 | -6/Factory | Identified exit to DSF 4135 | -6/Factory | Entered DSF 4135 | -6/DSF | Accompanied by 17 allies 4160 | -6/DSF | Additional patrols routed to DSF 4243 | -6/DSF | Sterilization system engaged 4250 | -6/DSF | Discovered new exit (range 10) 4263 | -6/DSF | Ambient heat levels rising (+10) 4265 | -6/DSF | Lost 3 allies 4278 | -6/DSF | Ambient heat levels rising (+10) 4282 | -6/DSF | Entered Factory 4282 | -5/Factory | Accompanied by 14 allies 4282 | -5/Factory | Evolved 2 slots: Propulsion x1, Utility x1 4359 | -5/Factory | Lost 11 allies 4361 | -5/Factory | Lost 6 parts (1p1n3u1w) 4539 | -5/Factory | Build established: Scavenger-Skirmisher 5043 | -5/Factory | Build established: Skirmisher 5452 | -5/Factory | Repaired Broken Antigrav Array 5521 | -5/Factory | Discovered new exit (range 7) 5527 | -5/Factory | Identified exit to Factory 5530 | -5/Factory | Entered another Factory area 5530 | -4/Factory | Evolved 2 slots: Utility x2 5832 | -4/Factory | Found Prototype Hackware 5852 | -4/Factory | Build established: Tank 6009 | -4/Factory | Found Prototype Processor 6115 | -4/Factory | Spotted B-86 Titan 6130 | -4/Factory | Identified Exp. Terrain Scan Processor 6214 | -4/Factory | Identified Exp. Hacking Suite 6225 | -4/Factory | Lost 8 parts (1p5u2w) 6345 | -4/Factory | Discovered new exit (range 16) 6393 | -4/Factory | Identified exit to Research 6395 | -4/Factory | Entered Research 6395 | -3/Research | Evolved 2 slots: Power x1, Utility x1 6509 | -3/Research | Build established: Skirmisher 6891 | -3/Research | Garrison activated, responded to threat 6916 | -3/Research | System corruption reached 10% 6964 | -3/Research | Lost 17 parts (6n8u3w) 6968 | -3/Research | Core integrity fell below 50% 6986 | -3/Research | Build established: Mutant 7012 | -3/Research | Core integrity fell below 20% 7050 | -3/Research | Destroyed by P-80 Master with Gamma Rifle Last Messages --------------- 07005_ Terminal disabled. 07006_ Slammed into P-80 Master. 07007_ Destabilizing: System interference. 07007_ Adv. Targeting Computer temporarily disabled. 07014_ Slammed into G-67 Veteran. 07016_ Slammed into Y-72 Warden. 07017_ Destabilizing: Core damaged (-13). 07018_ Slammed into Y-72 Warden. 07019_ Slammed into W-44 Eye. 07020_ Penetrated by Slug. 07029_ Door malfunctions. 07042_ Penetrated by Slug. 07042_ Exp. Terrain Scan Processor destroyed. 07042_ Imp. System Guard destroyed. 07042_ Critical hit (Blast). 07042_ Knocked back. 07044_ Terminal disabled. [Achievement: 10k Club] [Achievement: Just Browsing] Map ----- +----------------------------------------------------+ | ?????????????????????????????????????????????????? | | ?????????????????????????????????????????????????? | | ?????????????????????????????????????????????????? | | ?????????????????????????????????????????????????? | | ?????????????????????????????????????????????????? | | ?????????????????????????????????????????????????? | | ?????????????????????????????????????????????????? | | ?????????????????????????????????????????????????? | | ?????????????????????????????????????????????????? | | ?????????????????????????????????????????????????? | | ??????????????????????? ???????????????????????? | | ?????????????????????k R] ???????????????????????? | | ???????????????????? ???????????????????????? | | ????????????????????" ???????????????????????? | | ????????????????? """ k???????????????????????? | | ????????????????? """ ???????????????????????? | | ?????????????????k #??????????????????????? | | ??????????????#??? #??????????????????????? | | ??????????????# ?? #??????????????????????? | | ??????????????# """ #??????????????????????? | | ??????????????# """ #??????????????????????? | | ??????????????# """ #??????????????????????? | | ??????????????# k #??????????????????????? | | ??????????????# #??????????????????????? | | ??????????????# +??????????????????????? | | ??????????????# @#??????????????????????? | | ??????????????# #??????????????????????? | | ??????????????# #??????????????????????? | | ??????????????####+#### ##??????????????????????? | | ??????????????????????# #???????????????????????? | | ??????????????????????# #???????????????????????? | | ??????????????????????# p#???????????????????????? | | ????????????????????### ###???########??????????? | | ????????????????????# #???# ########???? | | ????????????????????# H##### #???? | | ????????????????????# %" ##### | | ????????????????????# " ! / | | ????????????????????# ###"# ##### | | ????????????????????# #???# "## #???# | | ????????????????????##### ########+###### #???# | | ????????????????????????# # # #???# | | ???????????????????????? # # #???# | | ????????????????????????### + #???# | | ??????????????????????????# # ##### | | ??????????????????????????# # | | ??????????????????????????# #######+## | | ??????????????????????????###############????????? | | ?????????????????????????????????????????????????? | | ?????????????????????????????????????????????????? | | ?????????????????????????????????????????????????? | +----------------------------------------------------+ Best States ------------- Heat Dissipation 86 Energy Generation 44 Energy Capacity 1250 Matter Stores 300 Matter Capacity 300 Sight Range 16 Robot Scan Range 18 Terrain Scan Range 16 Terrain Scan Density 1010 Jamming Range 14 Power Amplification 30 Base Temperature (-) 200 Corruption Containment 12 Corruption Block 11 Armor Coverage 225 Weapon Cycling 15 Phase Shifting 10 Evasion (%) 57 Targeting Accuracy 16 Recoil Reduction 2 Energy Filtering 30 Particle Charging 15 Offensive Hacking 16 Item Schematics ----------------- Imp. Thermal Defense Suite | -4/Factory | Scanalyzed Robot Schematics ------------------ None Fabricated ------------ Hvy. Phase Cannon | x2 | -7/Factory | Preloaded Alien Tech Used ----------------- None Achievements -------------- 10k Club Dangerous Findings I Spy Just Browsing Just What I Needed Respectable Loadout Total Silence Challenges ------------ None Game ------ Seed FusionChainLaser Manual? 0 Play Time 02:27:57 Cumulative 32.5 hours Start 2024.03.11 @ 14:43:28 End 2024.03.12 @ 16:35:09 Sessions 3 Manual Loads 0 Difficulty Rogue Special Mode None Game No. 39 Rogue 39 Adventurer 0 Explorer 0 Win Type - Total 0 Types 0/0/0/0/0/0/0/0/0 Lore% 12 Gallery% 28 Achievement% 23 Wizard Run 0 Options --------- Layout 1 ASCII 0 Keyboard 1 Movement Vi Keybinds 0 Fullscreen 2 Font 32/SmallcapsGlow Map View 50x35 Zoom Use 0% Tactical HUD 1 Map Filters NONE Filters NONE Steam 1 RUN: 25c2eb95-cdd7-4ce5-b4f6-c7ca369352ad